fUST/lending_fUST_20251105
["ID","MTS","AMOUNT","RATE_DAILY","PERIOD"]
[393166417,1762292250018,-1200.0,0.00019059,2]
[393166418,1762292250039,-250.17006508,0.00019059,2]
[393166419,1762292250059,-484.73712824,0.00019059,2]
[393166420,1762292250085,-419.94500407,0.00019059,2]
[393166421,1762292250109,-500.0,0.00019059,2]
[393166422,1762292250136,-500.0,0.00019059,2]
[393166423,1762292250157,-500.0,0.00019059,2]
[393166424,1762292250181,-500.0,0.00019059,2]
[393166425,1762292250203,-500.0,0.00019059,2]
[393166426,1762292250225,-500.0,0.00019059,2]
[393166427,1762292250248,-500.0,0.00019059,2]
[393166428,1762292250270,-500.0,0.00019059,2]
[393166429,1762292250292,-500.0,0.00019059,2]
[393166430,1762292250314,-500.0,0.00019059,2]
[393166431,1762292250336,-500.0,0.00019059,2]
[393166432,1762292250357,-500.0,0.00019059,2]
[393166433,1762292250383,-500.0,0.00019059,2]
[393166434,1762292250405,-371.49700757,0.00019059,2]
[393166435,1762292250427,-500.0,0.00019059,2]
[393166436,1762292250449,-500.0,0.00019059,2]
[393166437,1762292250472,-500.0,0.00019059,2]
[393166438,1762292250494,-500.0,0.00019059,2]
[393166439,1762292250518,-500.0,0.00019059,2]
[393166440,1762292250541,-500.0,0.00019059,2]
[393166441,1762292250570,-500.0,0.00019059,2]
[393166442,1762292250592,-500.0,0.00019059,2]
[393166443,1762292250615,-500.0,0.00019059,2]
[393166444,1762292250644,-500.0,0.00019059,2]
[393166445,1762292250666,-500.0,0.00019059,2]
[393166446,1762292250688,-500.0,0.00019059,2]
[393166447,1762292250710,-500.0,0.00019059,2]
[393166448,1762292250736,-500.0,0.00019059,2]
[393166449,1762292250760,-500.0,0.00019059,2]
[393166450,1762292250783,-500.0,0.00019059,2]
[393166451,1762292250805,-500.0,0.00019059,2]
[393166452,1762292250827,-500.0,0.00019059,2]
[393166453,1762292250849,-500.0,0.00019059,2]
[393166454,1762292250871,-500.0,0.00019059,2]
[393166455,1762292250901,-500.0,0.00019059,2]
[393166456,1762292250925,-500.0,0.00019059,2]
[393166457,1762292250948,-500.0,0.00019059,2]
[393166458,1762292250970,-500.0,0.00019059,2]
[393166459,1762292250993,-500.0,0.00019059,2]
[393166460,1762292251016,-500.0,0.00019059,2]
[393166461,1762292251038,-244.92399271,0.00019059,2]
[393166462,1762292251060,-500.0,0.00019059,2]
[393166463,1762292251080,-500.0,0.00019059,2]
[393166464,1762292251102,-500.0,0.00019059,2]
[393166465,1762292251124,-500.0,0.00019059,2]
[393166466,1762292251152,-500.0,0.00019059,2]
[393166467,1762292251174,-500.0,0.00019059,2]
[393166468,1762292251194,-500.0,0.00019059,2]
[393166469,1762292251216,-500.0,0.00019059,2]
[393166470,1762292251240,-500.0,0.00019059,2]
[393166471,1762292251264,-500.0,0.00019059,2]
[393166472,1762292251287,-500.0,0.00019059,2]
[393166473,1762292251309,-500.0,0.00019059,2]
[393166474,1762292251331,-500.0,0.00019059,2]
[393166475,1762292251352,-608.11755305,0.0001906,2]
[393166476,1762292251373,-500.24,0.0001906,2]
[393166477,1762292251399,-500.24,0.0001906,2]
[393166478,1762292251422,-500.24,0.0001906,2]
[393166479,1762292251443,-500.24,0.0001906,2]
[393166480,1762292251466,-500.24,0.0001906,2]
[393166481,1762292251487,-500.24,0.0001906,2]
[393166482,1762292251509,-500.24,0.0001906,2]
[393166483,1762292251532,-500.24,0.0001906,2]
[393166484,1762292251559,-500.24,0.0001906,2]
[393166485,1762292251586,-500.24,0.0001906,2]
[393166486,1762292251610,-500.24,0.0001906,2]
[393166487,1762292251636,-500.24,0.0001906,2]
[393166488,1762292251659,-500.24,0.0001906,2]
[393166489,1762292251681,-500.24,0.0001906,2]
[393166490,1762292251704,-500.24,0.0001906,2]
[393166491,1762292251726,-500.24,0.0001906,2]
[393166492,1762292251748,-500.24,0.0001906,2]
[393166493,1762292251771,-500.24,0.0001906,2]
[393166494,1762292251793,-500.24,0.0001906,2]
[393166495,1762292251815,-500.24,0.0001906,2]
[393166496,1762292251837,-500.24,0.0001906,2]
[393166497,1762292251860,-500.24,0.0001906,2]
[393166498,1762292251886,-500.24,0.0001906,2]
[393166499,1762292251908,-500.24848159,0.0001906,2]
[393166500,1762292251929,-500.0,0.0001906,2]
[393166501,1762292251951,-500.0,0.0001906,2]
[393166502,1762292251972,-500.0,0.0001906,2]
[393166503,1762292251994,-500.0,0.0001906,2]
[393166504,1762292252299,-350.21605604,0.0001906,2]
[393166505,1762292252323,-500.0,0.0001906,2]
[393166506,1762292252351,-500.0,0.0001906,2]
[393166507,1762292252373,-305.47888275,0.0001906,2]
[393166508,1762292252405,-14259.60189915,0.0001906,2]
[393166511,1762292381902,234.14,0.00022,7]
[393166512,1762292517453,187.31,0.00022,7]
[393166515,1762292654100,168.58,0.00022,7]
[393166516,1762292677841,1022.75577287,0.00018749,2]
[393166517,1762292678023,358.86210722,0.00018688,2]
[393166518,1762292790324,151.72,0.00022,7]
[393166519,1762292931600,151.72,0.00022,7]
[393166579,1762293036936,-300.0,0.00018959,2]
[393166580,1762293036946,-480.0,0.00018959,2]
[393166581,1762293036955,-150.0,0.00018959,2]
[393166582,1762293036969,-53458.74672951,0.0001896,2]
[393166583,1762293036979,-151.0,0.00019049,2]
[393166584,1762293036988,-151.0,0.00019049,2]
[393166585,1762293036997,-151.0,0.00019049,2]
[393166586,1762293037007,-151.0,0.00019049,2]
[393166587,1762293037019,-223.39491623,0.00019049,2]
[393166588,1762293037029,-500.0,0.00019059,2]
[393166589,1762293037038,-500.0,0.00019059,2]
[393166591,1762293037047,-500.0,0.00019059,2]
[393166593,1762293037056,-500.0,0.00019059,2]
[393166595,1762293037065,-187.14970075,0.00019059,2]
[393166597,1762293037074,-175.11904556,0.00019059,2]
[393166599,1762293037084,-500.0,0.00019059,2]
[393166601,1762293037093,-500.0,0.00019059,2]
[393166603,1762293037102,-500.0,0.00019059,2]
[393166604,1762293037111,-500.0,0.00019059,2]
[393166605,1762293037121,-500.0,0.00019059,2]
[393166606,1762293037130,-474.49239927,0.00019059,2]
[393166607,1762293037139,-426074.77340758,0.0001906,2]
[393166608,1762293037154,-1254.49979616,0.0001906,2]
[393166639,1762293037542,-1806.9324,0.0001906,2]
[393166646,1762293037593,-314.26,0.0001906,2]
[393166648,1762293037605,-1441.40699058,0.0001906,2]
[393166922,1762293040576,-375.58156136,0.0001906,2]
[393166944,1762293040745,-990.0,0.0001906,2]
[393166946,1762293040757,-28826.84257256,0.0001906,2]
[393167153,1762293042925,-21000.0002,0.0001906,2]
[393167156,1762293042936,-278.79719058,0.0001906,2]
[393167175,1762293043110,-832.22646684,0.0001906,2]
[393167582,1762293046253,-2959.9999998,0.0001906,2]
[393167584,1762293046264,-19956.50000011,0.0001906,2]
[393167596,1762293046381,-32857.44,0.0001906,2]
[393167656,1762293067311,151.72,0.00022,7]
[393167657,1762293086585,646.61,0.0001905,3]
[393167658,1762293096375,2184.57,0.0001875,2]
[393167659,1762293097064,239.65,0.0001905,3]
[393167660,1762293105955,150.0,0.00016774,2]
[393167661,1762293106356,150.0,0.00018299,2]
[393167662,1762293107830,718.95,0.0001905,3]
[393167663,1762293125776,152.0,0.0002166,7]
[393167664,1762293175239,150.0,0.00017075,2]
[393167665,1762293175664,150.0,0.00018627,2]
[393167666,1762293203198,151.72,0.00022,7]
[393167667,1762293243054,150.0,0.00016776,2]
[393167668,1762293243461,150.0,0.00018301,2]
[393167669,1762293338892,151.72,0.00022,7]
[393167670,1762293376715,5000.0,0.0001875,2]
[393167673,1762293477603,151.73,0.00022,7]
[393167674,1762293592852,1767.23155555,0.000229,4]
[393167675,1762293612483,151.73,0.00022,7]
[393167676,1762293634667,479.3,0.0001895,3]
[393167677,1762293665177,1246.96538161,0.00018714,2]
[393167678,1762293737407,886.91877035,0.00022849,5]
[393167679,1762293747012,151.73,0.00022,7]
[393167680,1762293828367,351.09072597,0.00018302,2]
[393167681,1762293880835,151.73,0.00022,7]
[393167682,1762293901782,-416.95362692,0.0001879,2]
[393167683,1762293946757,-181.54575965,0.0001879,2]
[393167684,1762293948275,-261.0,0.0001879,2]
[393167685,1762294014791,151.73,0.00022,7]
[393167686,1762294035192,234.99981557,0.00018202,2]
[393167687,1762294037046,422.99966802,0.00018202,2]
[393167688,1762294039338,751.99940982,0.00018202,2]
[393167689,1762294039553,396.01035231,0.00018691,2]
[393167690,1762294041312,1174.99907785,0.00018202,2]
[393167691,1762294050249,5836.0742072,0.00017906,2]
[393167692,1762294127046,310.62228448,0.00018202,2]
[393167693,1762294129415,354.99689654,0.00018202,2]
[393167694,1762294156085,18454.2096957,0.00017912,2]
[393167696,1762294169933,330.639004,0.00013699,2]
[393167722,1762294231841,-382.29027402,0.0001878,2]
[393167725,1762294231861,-416.25589013,0.0001878,2]
[393167728,1762294231875,-142.51164712,0.0001879,2]
[393167736,1762294231950,-3997.98896631,0.0001879,2]
[393167738,1762294231960,-150.0,0.00018791,2]
[393167740,1762294231970,-251.0,0.00018794,2]
[393167742,1762294231979,-1200.0,0.00018858,2]
[393167744,1762294231988,-1200.0,0.00018859,2]
[393167746,1762294231997,-300.0,0.00018859,2]
[393167748,1762294232007,-1002.31204833,0.00018859,2]
[393167750,1762294232016,-300.0,0.00018859,2]
[393167752,1762294232025,-300.0,0.00018859,2]
[393167754,1762294232034,-9800.23424798,0.00018873,2]
[393167756,1762294232043,-1619.87440961,0.00018948,2]
[393167758,1762294232052,-171.4819448,0.00018949,2]
[393167760,1762294232062,-151.0,0.00018949,2]
[393167762,1762294232071,-151.0,0.00018949,2]
[393167764,1762294232080,-151.0,0.00018949,2]
[393167766,1762294232089,-151.0,0.00018949,2]
[393167768,1762294232098,-151.0,0.00018949,2]
[393167770,1762294232107,-151.0,0.00018949,2]
[393167772,1762294232118,-151.0,0.00018949,2]
[393167774,1762294232127,-151.0,0.00018949,2]
[393167776,1762294232138,-151.0,0.00018949,2]
[393167778,1762294232147,-151.0,0.00018949,2]
[393167780,1762294232156,-151.0,0.00018949,2]
[393167782,1762294232168,-151.0,0.00018949,2]
[393167783,1762294232177,-151.0,0.00018949,2]
[393167785,1762294232188,-151.0,0.00018949,2]
[393167787,1762294232198,-151.0,0.00018949,2]
[393167789,1762294232207,-256.14351418,0.00018949,2]
[393167791,1762294232218,-160.0,0.00018958,2]
[393167793,1762294232227,-500.0,0.00018958,2]
[393167795,1762294232236,-500.0,0.00018958,2]
[393167797,1762294232245,-500.0,0.00018958,2]
[393167799,1762294232255,-500.0,0.00018958,2]
[393167801,1762294232266,-331.14875729,0.00018959,2]
[393167803,1762294232275,-500.0,0.00018959,2]
[393167805,1762294232285,-634.85,0.00018959,2]
[393167807,1762294232294,-494.99223144,0.00018959,2]
[393167809,1762294232304,-500.0,0.00018959,2]
[393167811,1762294232314,-500.0,0.00018959,2]
[393167813,1762294232323,-500.0,0.00018959,2]
[393167816,1762294232332,-500.0,0.00018959,2]
[393167818,1762294232342,-500.0,0.00018959,2]
[393167820,1762294232351,-500.0,0.00018959,2]
[393167822,1762294232361,-500.0,0.00018959,2]
[393167824,1762294232374,-634.7360962,0.00018959,2]
[393167826,1762294232384,-500.0,0.00018959,2]
[393167828,1762294232393,-623.42634497,0.00018959,2]
[393167830,1762294232403,-500.0,0.00018959,2]
[393167832,1762294232412,-500.0,0.00018959,2]
[393167834,1762294232422,-500.0,0.00018959,2]
[393167836,1762294232431,-500.0,0.00018959,2]
[393167838,1762294232441,-500.0,0.00018959,2]
[393167840,1762294232451,-500.0,0.00018959,2]
[393167842,1762294232460,-500.0,0.00018959,2]
[393167844,1762294232470,-500.0,0.00018959,2]
[393167846,1762294232481,-258.87866352,0.00018959,2]
[393167848,1762294232490,-500.0,0.00018959,2]
[393167850,1762294232500,-500.0,0.00018959,2]
[393167852,1762294232509,-500.0,0.00018959,2]
[393167853,1762294232518,-500.0,0.00018959,2]
[393167855,1762294232527,-500.0,0.00018959,2]
[393167857,1762294232537,-500.0,0.00018959,2]
[393167859,1762294232546,-500.0,0.00018959,2]
[393167861,1762294232555,-500.0,0.00018959,2]
[393167862,1762294232565,-500.0,0.00018959,2]
[393167864,1762294232575,-500.0,0.00018959,2]
[393167865,1762294232585,-500.0,0.00018959,2]
[393167866,1762294232594,-500.0,0.00018959,2]
[393167867,1762294232603,-500.0,0.00018959,2]
[393167868,1762294232613,-500.0,0.00018959,2]
[393167869,1762294232626,-500.0,0.00018959,2]
[393167870,1762294232636,-500.0,0.00018959,2]
[393167871,1762294232645,-500.0,0.00018959,2]
[393167872,1762294232655,-500.0,0.00018959,2]
[393167873,1762294232665,-500.0,0.00018959,2]
[393167874,1762294232674,-500.0,0.00018959,2]
[393167875,1762294232684,-500.0,0.00018959,2]
[393167876,1762294232694,-500.0,0.00018959,2]
[393167877,1762294232703,-500.0,0.00018959,2]
[393167878,1762294232713,-500.0,0.00018959,2]
[393167879,1762294232722,-500.0,0.00018959,2]
[393167880,1762294232732,-500.0,0.00018959,2]
[393167881,1762294232742,-500.0,0.00018959,2]
[393167882,1762294232751,-500.0,0.00018959,2]
[393167883,1762294232761,-500.0,0.00018959,2]
[393167884,1762294232770,-500.0,0.00018959,2]
[393167885,1762294232779,-500.0,0.00018959,2]
[393167886,1762294232788,-500.0,0.00018959,2]
[393167887,1762294232798,-500.0,0.00018959,2]
[393167888,1762294232807,-500.0,0.00018959,2]
[393167889,1762294232817,-500.0,0.00018959,2]
[393167890,1762294232827,-500.0,0.00018959,2]
[393167891,1762294232836,-500.0,0.00018959,2]
[393167892,1762294232847,-259.77105037,0.00018959,2]
[393167893,1762294232856,-356.887,0.00018959,2]
[393167894,1762294232872,-500.0,0.00018959,2]
[393167895,1762294232882,-500.0,0.00018959,2]
[393167896,1762294232893,-537.0,0.00018959,2]
[393167897,1762294232903,-500.0,0.00018959,2]
[393167898,1762294232913,-500.0,0.00018959,2]
[393167899,1762294232922,-151.0,0.00018959,2]
[393167900,1762294232932,-500.0,0.00018959,2]
[393167901,1762294232941,-500.0,0.00018959,2]
[393167902,1762294232951,-500.0,0.00018959,2]
[393167903,1762294232960,-500.0,0.00018959,2]
[393167904,1762294232969,-500.0,0.00018959,2]
[393167905,1762294232980,-500.0,0.00018959,2]
[393167906,1762294232989,-500.0,0.00018959,2]
[393167907,1762294232998,-500.0,0.00018959,2]
[393167908,1762294233007,-500.0,0.00018959,2]
[393167909,1762294233017,-500.0,0.00018959,2]
[393167910,1762294233027,-500.0,0.00018959,2]
[393167911,1762294233037,-500.0,0.00018959,2]
[393167912,1762294233047,-195.09780174,0.00018959,2]
[393167913,1762294233060,-304.90219826,0.00018959,2]
[393167914,1762294233070,-500.0,0.00018959,2]
[393167915,1762294233079,-500.0,0.00018959,2]
[393167916,1762294233089,-500.0,0.00018959,2]
[393167917,1762294233098,-500.0,0.00018959,2]
[393167918,1762294233108,-532.02850704,0.00018959,2]
[393167919,1762294233120,-500.0,0.00018959,2]
[393167920,1762294233130,-500.0,0.00018959,2]
[393167921,1762294233140,-500.0,0.00018959,2]
[393167922,1762294233149,-500.0,0.00018959,2]
[393167923,1762294233158,-500.0,0.00018959,2]
[393167924,1762294233171,-413.45339151,0.00018959,2]
[393167925,1762294233181,-3110.57,0.00018959,2]
[393167926,1762294233190,-3110.57,0.00018959,2]
[393167927,1762294233200,-7591.43762814,0.0001896,2]
[393167955,1762294237847,-109647.04860237,0.0001896,2]
[393168034,1762294240436,-1202.22657072,0.0001896,2]
[393168205,1762294242962,-3243.90000001,0.0001896,2]
[393168226,1762294243167,-1196.61185008,0.0001896,2]
[393168229,1762294243184,-50724.5439201,0.0001896,2]
[393168231,1762294243196,-788.63178146,0.0001896,2]
[393168233,1762294243207,-68361.3676531,0.0001896,2]
[393168235,1762294243218,-318202.7,0.0001896,2]
[393168384,1762294246452,-151.0,0.00018959,2]
[393168385,1762294246461,-151.0,0.00018959,2]
[393168386,1762294246470,-2408.75700235,0.0001896,2]
[393168577,1762294262050,499.27,0.00019049,3]
[393168578,1762294272812,249.63,0.00019049,3]
[393168579,1762294275349,200.0,0.00018772,15]
[393168580,1762294283519,748.94,0.00019049,3]
[393168581,1762294359256,197.202353,0.00030137,120]
[393168582,1762294398460,2300.0,0.000228,4]
[393168583,1762294430626,158.1142265,0.00018103,2]
[393168584,1762294456720,-365.79460417,0.00018858,2]
[393168585,1762294459629,-574.96666339,0.00018858,2]
[393168586,1762294461266,-294.85211517,0.00018858,2]
[393168587,1762294570943,151.0,0.00022525,7]
[393168588,1762294649290,151.0,0.0001988,7]
[393168589,1762294650823,151.0,0.0001988,7]
[393168590,1762294652562,151.0,0.0001988,7]
[393168591,1762294712936,151.0,0.0001989,7]
[393168592,1762294713121,167.30796,0.00020548,7]
[393168593,1762294742904,-351.1413626,0.00018856,2]
[393168594,1762294744474,-355.10921894,0.00018856,2]
[393168595,1762294746061,-157.60028748,0.00018856,2]
[393168596,1762294748793,-281.18337227,0.00018856,2]
[393168597,1762294771199,1246.96538161,0.00018684,2]
[393168598,1762294802537,-104.80209618,0.00018856,2]
[393168599,1762294802560,-74.0044075,0.00018859,2]
[393168600,1762294808302,-180.18,0.0001885,2]
[393168601,1762294808326,-2.29820774,0.0001885,2]
[393168602,1762294810434,-177.88179226,0.0001885,2]
[393168603,1762294810457,-168.00664598,0.00018859,2]
[393168604,1762294812974,-57.98894652,0.00018859,2]
[393168605,1762294812996,-187.62303273,0.00018859,2]
[393168606,1762294814270,151.0,0.0002,7]
[393168607,1762294815705,-112.37696727,0.00018859,2]
[393168608,1762294815727,-300.0,0.00018859,2]
[393168609,1762294815751,-14.10342073,0.00018859,2]
[393168610,1762294832691,-285.89657927,0.00018859,2]
[393168611,1762294832712,-11.66389213,0.00018859,2]
[393168612,1762294834476,-288.33610787,0.00018859,2]
[393168613,1762294834500,-145.27124487,0.00018859,2]
[393168614,1762294836093,-204.41859723,0.00018859,2]
[393168615,1762294838237,-172.03165665,0.00018859,2]
[393168616,1762294838317,249.63,0.0001885,3]
[393168617,1762294849895,748.91,0.0001885,3]
[393168618,1762294870381,162.040643,0.0002,7]
[393168619,1762294906767,-176.96052922,0.00018858,2]
[393168620,1762294944024,447.33857349,0.00018107,2]
[393168621,1762294946345,805.20943228,0.00018107,2]
[393168622,1762294948387,1431.48343516,0.00018107,2]
[393168623,1762294950315,2234.45617457,0.00018107,2]
[393168625,1762294972698,151.0,0.00019753,7]
[393168626,1762294996741,-290.87558441,0.00018857,2]
[393168627,1762294998167,292.9041546,0.00018035,2]
[393168628,1762295036769,472.82237699,0.00018107,2]
[393168629,1762295038968,851.08027858,0.00018107,2]
[393168630,1762295041074,1513.03160637,0.00018107,2]
[393168631,1762295043664,2364.11188495,0.00018107,2]
[393168632,1762295046077,3404.32111433,0.00018107,2]
[393168633,1762295048363,4629.02563521,0.00018107,2]
[393168634,1762295050411,228.37547732,0.00018709,2]
[393168635,1762295125096,150.0,0.00016308,2]
[393168636,1762295170556,151.0,0.00022,7]
[393168650,1762295221777,-236.50359093,0.000188,2]
[393168651,1762295221801,-109.61642968,0.00018849,2]
[393168655,1762295252974,-41.38357032,0.00018849,2]
[393168656,1762295252998,-151.0,0.00018849,2]
[393168657,1762295253023,-2.69834319,0.00018849,2]
[393168658,1762295255173,-148.30165681,0.00018849,2]
[393168659,1762295255197,-93.79558863,0.00018849,2]
[393168660,1762295255244,151.0,0.00022812,7]
[393168661,1762295256741,151.0,0.00022812,7]
[393168662,1762295256768,-57.20441137,0.00018849,2]
[393168663,1762295256792,-300.0,0.00018856,2]
[393168664,1762295256814,-88.66566754,0.00018857,2]
[393168665,1762295258419,151.0,0.00022812,7]
[393168666,1762295258879,-341.08448377,0.00018857,2]
[393168667,1762295262909,-260.25817174,0.00018857,2]
[393168668,1762295264439,10000.0,0.00018,2]
[393168669,1762295265096,-234.31441551,0.00018857,2]
[393168672,1762295278289,1117.3039631,0.00018662,2]
[393168673,1762295279574,-181.11831423,0.00018857,2]
[393168674,1762295281746,-94.55894721,0.00018857,2]
[393168675,1762295281769,-128.49917134,0.00018857,2]
[393168676,1762295284566,-300.0,0.00018856,2]
[393168677,1762295284595,-21.50082866,0.00018857,2]
[393168678,1762295284622,-13.55399453,0.00018857,2]
[393168679,1762295286215,-312.84892628,0.00018857,2]
[393168680,1762295290767,-162.51335656,0.00018857,2]
[393168681,1762295293070,-374.64341457,0.00018857,2]
[393168682,1762295312356,-214.60578616,0.00018757,2]
[393168683,1762295314532,-241.34124414,0.00018757,2]
[393168684,1762295326829,-282.66079632,0.00018757,2]
[393168685,1762295328976,-273.85012349,0.00018757,2]
[393168686,1762295331069,-155.93364418,0.00018757,2]
[393168687,1762295341857,-26.95971782,0.00018757,2]
[393168688,1762295341881,-152.7107901,0.00018856,2]
[393168689,1762295343603,-245.51880397,0.00018855,2]
[393168690,1762295345323,-54.48119603,0.00018855,2]
[393168691,1762295345348,-347.2892099,0.00018856,2]
[393168692,1762295345374,-40.92800902,0.00018856,2]
[393168693,1762295371764,-164.16705366,0.00018856,2]
[393168694,1762295374015,-160.51773996,0.00018856,2]
[393168695,1762295376187,-134.38719736,0.00018856,2]
[393168696,1762295376211,-46.59740711,0.00018856,2]
[393168697,1762295379414,-162.05304248,0.00018856,2]
[393168698,1762295382129,-168.46301276,0.00018856,2]
[393168699,1762295402303,-122.88653765,0.00018856,2]
[393168700,1762295402329,-78.41851966,0.00018856,2]
[393168701,1762295417365,-264.72672599,0.00018849,2]
[393168702,1762295421208,-183.04008678,0.00018849,2]
[393168703,1762295423304,-168.82503303,0.00018849,2]
[393168704,1762295425430,-160.6283231,0.00018849,2]
[393168705,1762295430252,-222.7798311,0.00018849,2]
[393168706,1762295430276,-422.8136874,0.00018849,2]
[393168707,1762295430819,1052.45348568,0.00018749,2]
[393168752,1762295432203,-577.1863126,0.00018849,2]
[393168754,1762295432213,-1000.0,0.00018849,2]
[393168756,1762295432223,-710.8453534,0.00018849,2]
[393168818,1762295435692,499.26,0.0001885,3]
[393168826,1762295438056,-289.1546466,0.00018849,2]
[393168827,1762295438066,-578.08930732,0.00018849,2]
[393168828,1762295438075,-144.95604608,0.00018849,2]
[393168829,1762295438089,-855.04395392,0.00018849,2]
[393168830,1762295438099,-1000.0,0.00018849,2]
[393168831,1762295438108,-1000.0,0.00018849,2]
[393168832,1762295438117,-1000.0,0.00018849,2]
[393168833,1762295438126,-1000.0,0.00018849,2]
[393168834,1762295438136,-1000.0,0.00018849,2]
[393168835,1762295438145,-1000.0,0.00018849,2]
[393168836,1762295438155,-1000.0,0.00018849,2]
[393168837,1762295438165,-1000.0,0.00018849,2]
[393168838,1762295438175,-207.39535909,0.00018849,2]
[393168840,1762295438184,-1200.0,0.00018855,2]
[393168841,1762295438201,-253.0,0.00018855,2]
[393168842,1762295438210,-421.58148034,0.00018856,2]
[393168843,1762295438220,-500.0,0.00018856,2]
[393168844,1762295438229,-500.0,0.00018856,2]
[393168845,1762295438239,-500.0,0.00018856,2]
[393168846,1762295438249,-500.0,0.00018856,2]
[393168847,1762295438259,-500.0,0.00018856,2]
[393168848,1762295438268,-500.0,0.00018856,2]
[393168849,1762295438278,-500.0,0.00018856,2]
[393168850,1762295438287,-500.0,0.00018856,2]
[393168851,1762295438297,-456.57346136,0.00018856,2]
[393168852,1762295438309,-43.42653864,0.00018856,2]
[393168853,1762295438318,-500.0,0.00018856,2]
[393168854,1762295438328,-500.0,0.00018856,2]
[393168855,1762295438338,-500.0,0.00018856,2]
[393168856,1762295438349,-500.0,0.00018856,2]
[393168857,1762295438359,-500.0,0.00018856,2]
[393168858,1762295438369,-500.0,0.00018856,2]
[393168859,1762295438379,-500.0,0.00018856,2]
[393168860,1762295438388,-500.0,0.00018856,2]
[393168861,1762295438398,-500.0,0.00018856,2]
[393168862,1762295438407,-500.0,0.00018856,2]
[393168863,1762295438417,-500.0,0.00018856,2]
[393168864,1762295438427,-500.0,0.00018856,2]
[393168865,1762295438437,-500.0,0.00018856,2]
[393168866,1762295438447,-500.0,0.00018856,2]
[393168867,1762295438457,-500.0,0.00018856,2]
[393168868,1762295438468,-500.0,0.00018856,2]
[393168869,1762295438478,-500.0,0.00018856,2]
[393168870,1762295438489,-500.0,0.00018856,2]
[393168871,1762295438500,-500.0,0.00018856,2]
[393168872,1762295438513,-500.0,0.00018856,2]
[393168873,1762295438523,-500.0,0.00018856,2]
[393168874,1762295438533,-500.0,0.00018856,2]
[393168875,1762295438543,-500.0,0.00018856,2]
[393168876,1762295438553,-495.97360962,0.00018856,2]
[393168877,1762295438562,-500.0,0.00018856,2]
[393168878,1762295438573,-500.0,0.00018856,2]
[393168879,1762295438583,-500.0,0.00018856,2]
[393168880,1762295438594,-500.0,0.00018856,2]
[393168881,1762295438603,-500.0,0.00018856,2]
[393168882,1762295438614,-500.0,0.00018856,2]
[393168883,1762295438623,-500.0,0.00018856,2]
[393168884,1762295438634,-474.52848603,0.00018856,2]
[393168885,1762295438643,-500.0,0.00018856,2]
[393168886,1762295438653,-500.0,0.00018856,2]
[393168887,1762295438663,-500.0,0.00018856,2]
[393168888,1762295438672,-500.0,0.00018856,2]
[393168889,1762295438682,-500.0,0.00018856,2]
[393168890,1762295438691,-351.91790517,0.00018856,2]
[393168891,1762295438700,-500.0,0.00018856,2]
[393168892,1762295438710,-500.0,0.00018856,2]
[393168893,1762295438719,-500.0,0.00018856,2]
[393168894,1762295438729,-500.0,0.00018856,2]
[393168895,1762295438738,-500.0,0.00018856,2]